Cogmind - Beta 12 @@@ ROGUE MODE // 2023.12.07 @ 23:34:35 Player: babadi Result: Destroyed by D-53 Grenadier with Mini Grenade Launcher Performance ------------- Evolutions (0) 0 Regions Visited (4) 800 Robots Destroyed (26) 130 Value Destroyed (384) 384 Prototype IDs (0) 0 Alien Tech Used (0) 0 Bonus (25) 25 TOTAL SCORE: 1339 Bonus ------- Follower Combat Kills 25 Cogmind --------- Core Integrity 0/250 Matter 300/300 Energy 250/250 System Corruption 0% Temperature Cool (0) Movement Core (800) Ox15 Location -9/Mines Parts ------- > --- POWER (1) -------- Ion Engine > --- PROPULSION (2) --- Light Treads > --- UTILITY (2) ------ High-capacity Storage Unit Signal Interpreter > --- WEAPON (2) ------- Makeshift Shrapnel Gun > --- INVENTORY (20) --- Light Ion Engine Light Treads Light Treads Aluminum Leg Wheel Wheel Wheel Heat Sink Small Storage Unit High-capacity Storage Unit Decoy Drone Bay Assault Rifle Light Assault Rifle Mining Laser Makeshift Sword Peak State ------------ > --- POWER ------------ Ion Engine > --- PROPULSION ------- Light Treads Wheel > --- UTILITY ---------- High-capacity Storage Unit Signal Interpreter > --- WEAPON ----------- Assault Rifle Makeshift Shrapnel Gun > --- INVENTORY -------- Light Ion Engine Light Treads Light Treads Aluminum Leg Wheel Wheel Wheel Compact Wheel Heat Sink Small Storage Unit High-capacity Storage Unit Decoy Drone Bay Assault Rifle Light Assault Rifle Mining Laser Makeshift Sword [Rating: 13] Favorites ----------- Power Ion Engine Engine Ion Engine Propulsion Light Treads Treads Light Treads Wheel Wheel Utility High-capacity Storage Unit Device Heat Sink Storage High-capacity Storage Unit Processor Signal Interpreter Weapon Beam Cannon Energy Cannon Beam Cannon Ballistic Gun Assault Rifle Slashing Weapon Makeshift Sword Build | -11 -10 -10 -10 -9 ------- Run | Jun Mat Min Exi Min Slots Evolved . | . . . . . Power . | . . . . . Propulsion . | . . . . . Utility . | . . . . . Weapon . | . . . . . Parts Attached 22 | 6 7 1 4 4 Power 2 | 1 . . . 1 Engine 2 | 1 . . . 1 Core . | . . . . . Reactor . | . . . . . Propulsion 7 | 2 4 . . 1 Treads 3 | 2 1 . . . Leg . | . . . . . Wheel 4 | . 3 . . 1 Hover . | . . . . . Flight . | . . . . . Utility 4 | 1 2 1 . . Device 1 | . 1 . . . Storage 2 | 1 1 . . . Processor 1 | . . 1 . . Hackware . | . . . . . Protection . | . . . . . Artifact . | . . . . . Weapon 9 | 2 1 . 4 2 Energy Gun . | . . . . . Energy Cannon 1 | . 1 . . . Ballistic Gun 5 | 2 . . 1 2 Ballistic Cannon . | . . . . . Launcher . | . . . . . Special Weapon . | . . . . . Impact Weapon . | . . . . . Slashing Weapon 3 | . . . 3 . Piercing Weapon . | . . . . . Special Melee Weapon . | . . . . . Unidentified Prototypes . | . . . . . Parts Lost 5 | . . . . 5 Power 1 | . . . . 1 Propulsion 2 | . . . . 2 Utility . | . . . . . Weapon 2 | . . . . 2 Highest Loss Streak 3 | . . . . 3 To Critical Strikes . | . . . . . Average Slot Usage (%) 97 | . 95 100 96 98 Engine 14 | . 14 14 14 14 Treads 14 | . 15 14 14 14 Wheel 13 | . 12 14 14 13 Device 3 | . 9 3 . . Storage 14 | . 14 14 14 14 Processor 9 | . . 10 14 14 Energy Cannon 12 | . 12 14 14 1 Ballistic Gun 11 | . 15 14 5 25 Slashing Weapon 2 | . . . 5 . Naked Turns . | . . . . . Heaviest Build 51 | 13 51 51 50 50 Greatest Support 40 | 40 40 10 10 16 Greatest Overweight (x) 16 | . 5 5 4 16 Average Overweight (x) 4 | . 4 4 4 4 Largest Inventory Capacity 20 | 8 20 20 20 20 Average Capacity 19 | 6 19 20 20 20 Most Carried 18 | 5 14 15 18 17 Average Carried 14 | 3 10 14 16 16 Final Capacity 20 | 8 20 20 20 20 Final Carried 17 | 5 14 15 17 16 Class Distribution -------------------- 100% | Mutant Dominant Class ---------------- Mutant | -10/Materials Mutant | -10/Mines Mutant | -10/Exiles Mutant | -9/Mines Resources | -11 -10 -10 -10 -9 ----------- Run | Jun Mat Min Exi Min Matter Collected 581 | 203 277 10 . 91 Remotely . | . . . . . Salvage Created 1054 | . 987 . . 67 Parts 52 | . 50 . . 2 Haulers Intercepted 2 | . 2 . . . Recyclers Shooed 5 | . 5 . . . Parts Field Recycled . | . . . . . Retrieved Matter . | . . . . . Parts Self-Destructed . | . . . . . Prevented . | . . . . . Kills | -11 -10 -10 -10 -9 ------- Run | Jun Mat Min Exi Min Combat Hostiles Destroyed 13 | . 10 . . 3 Melee 1 | . . . . 1 Guns 9 | . 7 . . 2 Cannons 3 | . 3 . . . Classes Destroyed 10 | . 9 . . 1 Worker 2 | . 2 . . . Builder 1 | . 1 . . . Hauler 2 | . 2 . . . Recycler 6 | . 6 . . . Mechanic 1 | . 1 . . . Operator 1 | . 1 . . . Watcher 2 | . 2 . . . Swarmer 6 | . 6 . . . Grunt 5 | . 4 . . 1 Assembled 2 | . . . . 2 Best Kill Streak 7 | . 7 . . 3 Combat Bots Only 5 | . 5 . . 3 Max Kills in Single Turn 1 | . 1 . . 1 Gunslinging . | . . . . . Exploded . | . . . . . Melee 1 | . . . . 1 Uniques/NPCs Destroyed . | . . . . . Combat | -11 -10 -10 -10 -9 -------- Run | Jun Mat Min Exi Min Damage Taken 946 | . 366 . . 580 Core 257 | . 55 . . 202 Absorbed by Shields . | . . . . . Core Remaining (%) 100 | 100 . . . . Volleys Fired 67 | . 61 1 1 4 Largest 2 | . 2 1 2 2 Hottest 84 | . 80 60 80 84 Shots Fired 120 | . 109 1 2 8 Gun 62 | . 54 . 1 7 Cannon 58 | . 55 1 1 1 Launcher . | . . . . . Special . | . . . . . Kinetic 62 | . 54 . 1 7 Thermal 58 | . 55 1 1 1 Explosive . | . . . . . Electromagnetic . | . . . . . Robot Hit Streak 10 | . 10 3 . 4 Robot Miss Streak 3 | . 3 . . 3 Penetration Max . | . . . . . Secondary Targets 1 | . . . . 1 Max Gunslinging Chain 1 | . . . . 1 Shots Hit Robots 77 | . 68 1 . 8 Core Hits 39 | . 33 . . 6 Critical Kills 1 | . 1 . . . Critical Parts Destroyed 1 | . 1 . . . Critical Strikes 2 | . 2 . . . Destroy 2 | . 2 . . . Melee Attacks 12 | . . . 11 1 Impact . | . . . . . Slashing 12 | . . . 11 1 Piercing . | . . . . . Sneak Attacks . | . . . . . Combat Hostiles . | . . . . . Follow-up Attacks . | . . . . . Damage Inflicted 1237 | . 1071 18 18 130 Guns 537 | . 462 . . 75 Cannons 663 | . 609 18 18 18 Explosions . | . . . . . Melee 37 | . . . . 37 Ramming . | . . . . . Kinetic 537 | . 462 . . 75 Thermal 663 | . 609 18 18 18 Explosive . | . . . . . Electromagnetic . | . . . . . Impact . | . . . . . Slashing 37 | . . . . 37 Piercing . | . . . . . Highest Corruption . | . . . . . Average Corruption . | . . . . . Corruption Purged . | . . . . . Corruption Blocked . | . . . . . Overload Shots . | . . . . . Overflow Damage . | . . . . . Projectiles . | . . . . . Explosions . | . . . . . Melee . | . . . . . Knockbacks . | . . . . . Impact . | . . . . . Kinetic . | . . . . . Secondary . | . . . . . Self-Inflicted Damage . | . . . . . Shots . | . . . . . Rammed . | . . . . . Targets Rammed . | . . . . . Kicked . | . . . . . Crushed . | . . . . . Highest Temperature 311 | . 311 20 18 19 Average Temperature 131 | . 140 15 12 12 Received Heat Transfer 201 | . 147 . . 54 Effects 1 | . 1 . . . Shutdowns 1 | . 1 . . . Siege Activations . | . . . . . Robots Corrupted . | . . . . . Combat Hostiles . | . . . . . Parts Fried . | . . . . . Impact Corruptions . | . . . . . Robots Melted . | . . . . . Combat Hostiles . | . . . . . Parts Melted . | . . . . . Heat Transferred 1406 | . 1295 37 37 37 Parts Sabotaged . | . . . . . Parts Stolen . | . . . . . Parts Stripped . | . . . . . Power Chain Reactions . | . . . . . Missiles Intercepted . | . . . . . Alert | -11 -10 -10 -10 -9 ------- Run | Jun Mat Min Exi Min Peak Influence 377 | . 377 80 . 70 Initial 80 | . . 80 . . Average 104 | . 193 48 . 29 Maximum Alert Level 1 | . 1 . . . Low Security (%) 84 | 100 63 100 . 100 Level 1 15 | . 36 . . . Level 2 . | . . . . . Level 3 . | . . . . . Level 4 . | . . . . . Level 5 . | . . . . . High Security . | . . . . . Max Security . | . . . . . Squads Dispatched 2 | . 2 . . . Investigation . | . . . . . Extermination . | . . . . . Reinforcement 2 | . 2 . . . Assault . | . . . . . Garrison . | . . . . . Intercept . | . . . . . Searches Triggered . | . . . . . Construction Impeded . | . . . . . Haulers Reinforced . | . . . . . Active Scanning Responses . | . . . . . Cargo Convoy Interrupts . | . . . . . Stealth | -11 -10 -10 -10 -9 --------- Run | Jun Mat Min Exi Min Distress Signals 2 | . 1 . . 1 Communications Jammed . | . . . . . Distress Signals . | . . . . . Times Spotted 29 | . 18 . . 11 Peak Tracking Total 6 | . 5 . . 6 Tactical Retreats . | . . . . . Traps | -11 -10 -10 -10 -9 ------- Run | Jun Mat Min Exi Min Traps Triggered . | . . . . . Indirectly . | . . . . . Trap Hack Attempts . | . . . . . Triggered . | . . . . . Disarmed . | . . . . . Reprogrammed . | . . . . . Reused . | . . . . . Traps Extracted . | . . . . . Installed . | . . . . . Triggered . | . . . . . Machines | -11 -10 -10 -10 -9 ---------- Run | Jun Mat Min Exi Min Machines Disabled 3 | . 2 . 1 . Max in Single Turn 1 | . 1 . 1 . Machines Repaired . | . . . . . Machines Sabotaged . | . . . . . Overloaded Fab Kills . | . . . . . Hacking | -11 -10 -10 -10 -9 --------- Run | Jun Mat Min Exi Min Machines Accessed 7 | . 5 . 1 1 Terminals 4 | . 4 . . . Fabricators . | . . . . . Repair Stations . | . . . . . Recycling Units 1 | . 1 . . . Scanalyzers . | . . . . . Garrison Access . | . . . . . Total Hacks 18 | . 11 . 6 1 Successful 12 | . 5 . 6 1 Failed 6 | . 6 . . . Catastrophic 3 | . 3 . . . Database Lockouts . | . . . . . Manual 10 | . 8 . 2 . Terminals 10 | . 10 . . . Fabricators . | . . . . . Repair Stations . | . . . . . Recycling Units 1 | . 1 . . . Scanalyzers . | . . . . . Garrison Access . | . . . . . Terminal Hacks 10 | . 3 . 6 1 Record 6 | . . . 6 . Open Door 1 | . . . . 1 Branch Access Points 1 | . 1 . . . Emergency Access Points 1 | . 1 . . . Hauler Manifests 1 | . 1 . . . Fabricator Hacks . | . . . . . Repair Station Hacks . | . . . . . Recycling Unit Hacks 1 | . 1 . . . Retrieve Components 1 | . 1 . . . Scanalyzer . | . . . . . Garrison Access Hacks . | . . . . . Unauthorized Hacks 1 | . 1 . . . Terminals 1 | . 1 . . . Botnet 1 | . 1 . . . Fabricators . | . . . . . Repair Stations . | . . . . . Recycling Units . | . . . . . Scanalyzers . | . . . . . Garrison Access . | . . . . . Data Cores Recovered . | . . . . . Used . | . . . . . Hacking Detections 3 | . 3 . . . Full Trace Events . | . . . . . Feedback Events . | . . . . . Feedback Blocked . | . . . . . Robot Schematics Acquired . | . . . . . Robots Built . | . . . . . Authchips . | . . . . . Time . | . . . . . Total Robot Build Rating . | . . . . . Part Schematics Acquired . | . . . . . Parts Built . | . . . . . Authchips . | . . . . . Time . | . . . . . Total Part Build Rating . | . . . . . Parts Repaired . | . . . . . Time . | . . . . . Parts Recycled . | . . . . . Recycled Matter . | . . . . . Retrieved Matter . | . . . . . Retrieved Components 8 | . 8 . . . Parts Scanalyzed . | . . . . . Part Schematics Acquired . | . . . . . Parts Damaged . | . . . . . Bothacking | -11 -10 -10 -10 -9 ------------ Run | Jun Mat Min Exi Min Used RIF Installer . | . . . . . Robots Hacked . | . . . . . Non-combat . | . . . . . Combat . | . . . . . Robot Hacks Applied . | . . . . . Relay Couplers Released . | . . . . . Fabnet Peak Effective % . | . . . . . Robots Rewired 3 | . . . 3 . Allies Hacked . | . . . . . Hacks Repelled . | . . . . . Allies | -11 -10 -10 -10 -9 -------- Run | Jun Mat Min Exi Min Total Allies 4 | . . 1 3 . Largest Group 3 | . . 1 3 2 Highest-Rated Group 37 | . . 31 37 29 Highest-Rated Ally 31 | . . 31 21 21 Total Orders . | . . . . . Ally Attacks 15 | . . . . 15 Total Damage 180 | . . . . 180 Kills 4 | . . . . 4 Allies Corrupted . | . . . . . Allies Melted . | . . . . . Intel | -11 -10 -10 -10 -9 ------- Run | Jun Mat Min Exi Min Robot Analysis Total . | . . . . . Derelict Logs Recovered 1 | . . 1 . . Drone Launches . | . . . . . Drone Recoveries . | . . . . . Exploration | -11 -10 -10 -10 -9 ------------- Run | Jun Mat Min Exi Min Turns Passed 2859 | 81 708 655 1175 240 Spaces Moved 1751 | 43 329 441 787 151 Core 2 | 1 . . . 1 Treads 73 | 42 31 . . . Legs . | . . . . . Wheels 1676 | . 298 441 787 150 Hover . | . . . . . Flight . | . . . . . Fastest Speed 50 | 50 130 140 140 140 Average Speed 144 | 157 153 143 140 144 Slowest Speed 850 | 160 240 155 140 850 Overloaded Moves . | . . . . . Propulsion Burnouts . | . . . . . Robots Hopped . | . . . . . Cave-ins Triggered . | . . . . . Exploration Rate (%) 55 | 4 57 90 93 35 Regions Visited 4 Branch Regions 3 Pre-discovered Areas 2 | . . 1 1 . Known Exits Taken 3 | . 1 1 1 . Unknown Exits Taken 1 | 1 . . . . Scrap Searched 1 | . . 1 . . Spaces Dug 5 | . . . 5 . Terrain Destroyed 5 | . . . 5 . Melee 5 | . . . 5 . Projectile . | . . . . . AOE . | . . . . . Terrain Rammed . | . . . . . Walls Destroyed . | . . . . . Machines Disabled . | . . . . . Actions | -11 -10 -10 -10 -9 --------- Run | Jun Mat Min Exi Min Total 1951 | 54 422 460 846 169 Wait 49 | . 18 17 6 8 Move 1747 | 42 328 440 786 151 Hop . | . . . . . Pick Up 16 | 6 6 1 2 1 Fast Attach 7 | 5 2 . . . Attach 5 | 1 . . 1 3 Detach 2 | . 1 . 1 . Swap 10 | . 5 1 3 1 Drop 1 | . 1 . . . Fire 67 | . 61 1 1 4 Melee 12 | . . . 11 1 Ram . | . . . . . Kick . | . . . . . Crush . | . . . . . Escape Stasis . | . . . . . Rewire 35 | . . . 35 . Trap . | . . . . . Miscellaneous . | . . . . . Route ------- -11/Junkyard -10/Materials (discovered 3 exits: *Mat x2 / *Min) -10/Mines (discovered 3 exits: *Mat x2 / *Exi) -10/Exiles (discovered 2 exits: *Min x2) -9/Mines History --------- Turn | Location | Event 22 | -11/Junkyard | Discovered new exit (range 15) 82 | -11/Junkyard | Entered Materials 303 | -10/Materials | Build established: Mutant 468 | -10/Materials | Discovered new exit (range 11) 505 | -10/Materials | Identified exit to Mines 593 | -10/Materials | Discovered new exit (range 16) 734 | -10/Materials | Discovered new exit (range 11) 790 | -10/Materials | Entered Mines 880 | -10/Mines | Learned location of Storage (-8) 955 | -10/Mines | Discovered new exit (range 9) 968 | -10/Mines | Identified exit to Materials 1113 | -10/Mines | Discovered exit to Materials (range 14) 1144 | -10/Mines | Received a Mining Laser from a helpful Derelict 1428 | -10/Mines | Deemed a non-threat by the Exiles lab entrance 1430 | -10/Mines | Discovered new exit (range 6) 1435 | -10/Mines | Identified exit to Exiles 1445 | -10/Mines | Entered Exiles 1445 | -10/Exiles | Found Exiles lab destroyed 1476 | -10/Exiles | Discovered new exit (range 15) 1494 | -10/Exiles | Identified exit to Mines 1716 | -10/Exiles | Learned location of Zion (-7) 1786 | -10/Exiles | Discovered exit to Mines (range 14) 2620 | -10/Exiles | Entered Mines 2620 | -9/Mines | Accompanied by 3 allies 2621 | -9/Mines | Assembled infested the area 2653 | -9/Mines | Core integrity fell below 50% 2682 | -9/Mines | Met a Derelict bent on vengeance 2746 | -9/Mines | Found the Drone Emporium 2757 | -9/Mines | Found Prototype Device 2856 | -9/Mines | Core integrity fell below 20% 2860 | -9/Mines | Destroyed by D-53 Grenadier with Mini Grenade Launcher Last Messages --------------- 02661_ Acquired 19 matter. 02668_ The unstable cave ceiling collapses. 02745_ Connecting with SHOP.Sys... >>Open Door Sealed Doors opened. 02746_ V1-7U2(g): "Well that was anticlimactic. Heard you outside and thought you were from the Merchants Guild. I haven't even officially opened my Drone Emporium yet but am totally ready to tell them where they can shove that C&D." 02748_ V1-7U2(g): "I'm a fan of the free market. Free drones for all! No strings attached!" 02757_ Acquired Prototype Device. 02850_ Commando 1a destroyed. 02853_ Wheel destroyed. 02854_ U-05 Engineer lays Concrete. 02857_ Com. Wheel destroyed. 02858_ The unstable cave ceiling collapses. 02858_ Assault Rifle destroyed. 02858_ as-55083 destroyed. 02858_ U-05 Engineer builds a Wall. 02859_ The unstable cave ceiling collapses. Map ----- +----------------------------------------------------+ | ?????????????????????????????????????????????????? | | ?????????????????????????????????????????????????? | | ?????????????????????????????????????????????????? | | ?????????????????????????????????????????????????? | | ?????????????????????????????????????????????????? | | ?????????????????????????????????????????????????? | | ?????????????????????????????????????????????????? | | ?????????????????????????????????????????????????? | | ?????????????????????????????????????????????????? | | ?????????????????????????????????????????????????? | | ????????????????????????? ????????????? ????????? | | ????????????????????????? ????????????? ????????? | | ????????????????????????#=????????????? ????????? | | ???????????????????????# ????????????? #???????? | | ??????????????????????? *????????????? #???????? | | ??????????????????????? ????????????? #???????? | | ???????????????????????== ????????????# #???????? | | ???????????????????????=%|#??????????? #???????? | | ???????????????????????#[*#???????????# #???????? | | ???????????????????????#%%#???????????# #???????? | | ???????????????????????#!!#???????????# #???????? | | ?????????????????????###% ####????????# #???????? | | ?????????????????????# != ##??????## ###?????? | | ??????????????????#### = #?###### ##????? | | ???????????########%$% ### #????? | | ??????????? ?# @ ##### """ ##???? | | ??????????# =% # #####???# """ #???? | | ???????????????### # #???##### """ #???? | | ???????????????# % ##???# #???? | | ???????????????## # #????# ##???? | | ????????????????## d #????# ### ###????? | | ?????????????????# ##????# #?## #??????? | | ?????????????????# ##?????# #??# #??????? | | ????????????????# # ###??????# #??# #??????? | | ??????????????? ##????????# #??# #??????? | | ????????????? % #????????# #??# #??????? | | ???????????? ###% #???????# #??# #??????? | | ???????????? ####??## ???????# #??# ##?????? | | ????????????????????# ??????# #??# #?????? | | ????????????????????## ?????# #??## #?????? | | ????????????????????# ????# #???# ######? | | ????????????????????# " ##### #???# #? | | ????????????????????# #???###### #? | | ?????????????????????# #????????# #? | | ???????????????????#### ### #####????????# #? | | ???????????????????? #####????# #????????????# #? | | ????????????????????# #???????## #????????????# #? | | ????????????????????# ####???## ##???????????# #? | | ???????????????????## ##??# ####????????# #? | | ???????????????????# #### ##???????# #? | +----------------------------------------------------+ Best States ------------- Heat Dissipation 35 Energy Generation 10 Energy Capacity 250 Matter Stores 300 Matter Capacity 300 Sight Range 16 Terrain Scan Density 10 Evasion (%) 40 Recoil Reduction 2 Item Schematics ----------------- None Robot Schematics ------------------ None Fabricated ------------ Nothing Alien Tech Used ----------------- None Achievements -------------- None Challenges ------------ None Game ------ Seed CargoBurstBroadsword Manual? 0 Play Time 00:31:37 Cumulative 25.8 hours Start 2023.12.07 @ 22:59:13 End 2023.12.07 @ 23:34:35 Sessions 1 Manual Loads 0 Difficulty Rogue Special Mode None Game No. 12 Rogue 12 Adventurer 0 Explorer 0 Win Type - Total 0 Types 0/0/0/0/0/0/0/0/0 Lore% 16 Gallery% 16 Achievement% 20 Wizard Run 0 Options --------- ASCII 0 Keyboard 0 Movement Mouse Keybinds 0 Fullscreen 1 Font 12/Tallcaps Map View 83x54 Tactical HUD 1 Map Filters NONE Filters NONE Steam 1 RUN: 862de927-73ce-43b0-8aa3-1b2f6675a958